{"text_format":"3","workbook":"xlsx","n_sheets":4,"sheets":["Teklif Formu","Grafik Verileri","Maliyet Dökümü","Teklif Maliyeti Özeti"],"not_rendered":{"charts":1,"images":2,"defined_names":11},"read":"whole","date_system":"1900"}

{"sheet":"Teklif Formu","index":0,"n_rows":21,"n_cols":6,"rows_kept":21,"merged":[[0,1,0,4],[1,1,1,2],[7,1,8,1],[7,2,8,2],[10,1,10,5],[12,1,12,5],[14,1,14,5],[15,1,15,2],[15,4,15,5],[16,1,16,2],[16,4,16,5],[18,1,18,5],[19,1,19,2],[19,4,19,5],[20,1,20,2],[20,4,20,5]]}
[null,"İnşaat Teklifi Formu"]
[null,"Ev Sahibi Bilgileri",null,null,"Yüklenici Bilgileri"]
[null,"Ad","Bu hücreye ev sahibinin Adını girin",null,"Şirket","Bu hücreye yüklenicinin Şirket adını girin"]
[null,"Adres","Bu hücreye ev sahibinin Adresini girin",null,"Ad","Bu hücreye yüklenicinin Adını girin"]
[null,"Şehir, Posta Kodu","Bu hücreye ev sahibinin Şehir ve Posta Kodunu girin",null,"Adres","Bu hücreye yüklenicinin Adresini girin"]
[null,"Telefon","Bu hücreye ev sahibinin Telefon numarasını girin",null,"Şehir, Posta Kodu","Bu hücreye yüklenicinin Şehir ve Posta kodunu girin"]
[null,"E-posta adresi","Bu hücreye ev sahibinin E-posta adresini girin",null,"Telefon","Bu hücreye yüklenicinin Telefon Numarasını girin"]
[null,"Proje adı","Bu hücreye Proje adını girin",null,"E-posta adresi","Bu hücreye yüklenicinin E-posta adresini girin "]
[{"$nulls":4},"Tamamlanma tarihi","Bu hücreye Tamamlanma tarihini girin"]
[null,"İşin Kapsamı"]
[null,"Projenin iş kapsamını buraya girin. İstediğiniz tüm belirtimleri yazın. \n\nÖrnek metin: Bu, büyük bir merdiven inşa etmeye yönelik sahte bir proje olacak. Çerçeveyi oluşturmak için kiriş köşebentlerinin yanı sıra yalnızca 2x4 ve 2x8 kereste kullanacağız. Merdivenler 2x4 malzemeden kesilecek. 5 cm’den kısa vida kullanılmayacak.  Herhangi bir çivi 10 kuruştan az olmayacak. Tasarım ağırlığı, adım başına en az 230 kg taşıyacak. Merdivenler, evle aynı seviyede olacak. Bir basamak eve sabitlenecek. Temizlikten yüklenici sorumlu olacak."]
[null,"Dahil Edilmeyenler"]
[null,"Dahil edilmeyen proje ayrıntılarını buraya girin. Bu teklife dahil edilmeyen her şeyi yazın. \n\nÖrnek metin: Ray döşenmeyecek. Zemin, ev sahibi tarafından hazırlanacak. Merdivenler ev sahibi tarafından boyanacak."]
[null,"Şirket Teklifi"]
[null,"Şirket teklifini buraya girin. İşi kimin teklif ettiğini, beklenen tamamlanma tarihini ve teklif tutarını içerecek şekilde teklife genel bir bakış yazın.\n\nÖrnek metin: Şirket Adı olarak, yukarıdaki iş kapsamının Tamamlanma Tarihi tarihine kadar Toplam Tutar karşılığında tamamlanmasını teklif ediyoruz."]
[]
[null,"Gönderen (Şirket Temsilcisi)",null,null,"Tarih"]
[null,"Ev Sahibinin Kabulü"]
[null,"Ev Sahibinin kabulünü buraya girin. Tamamlanma tarihini ve şirket teklifinde belirtilen toplam tutarı içeren onay bildirimine Ev sahibinin adını yazın. \n\nÖrnek metin: Sahip Adı olarak, Tamamlanma Tarihi tarihine kadar Toplam Tutar karşılığında tamamlanması teklif edilen yukarıdaki iş kapsamını kabul ediyorum."]
[]
[null,"Gönderen (ev sahibi veya yetkili temsilci)",null,null,"Tarih"]

{"sheet":"Grafik Verileri","index":1,"n_rows":7,"n_cols":3,"rows_kept":7,"hidden":true}
[]
[null,null,"Toplam"]
[null,{"$f":"INDEX(TeklifÖğeleri[#Data],MATCH(1,TeklifÖğeleri[Derecelendirilmiş Maliyetler],0),2)","v":"İşçi ücretleri"},{"$f":"INDEX(TeklifÖğeleri[#Data],MATCH(1,TeklifÖğeleri[Derecelendirilmiş Maliyetler],0),4)","v":200}]
[null,{"$f":"INDEX(TeklifÖğeleri[#Data],MATCH(2,TeklifÖğeleri[Derecelendirilmiş Maliyetler],0),2)","v":"2x4x10 kereste"},{"$f":"INDEX(TeklifÖğeleri[#Data],MATCH(2,TeklifÖğeleri[Derecelendirilmiş Maliyetler],0),4)","v":99.39999999999999}]
[null,{"$f":"INDEX(TeklifÖğeleri[#Data],MATCH(3,TeklifÖğeleri[Derecelendirilmiş Maliyetler],0),2)","v":"Kiriş köşebendi"},{"$f":"INDEX(TeklifÖğeleri[#Data],MATCH(3,TeklifÖğeleri[Derecelendirilmiş Maliyetler],0),4)","v":74.7}]
[null,{"$f":"INDEX(TeklifÖğeleri[#Data],MATCH(4,TeklifÖğeleri[Derecelendirilmiş Maliyetler],0),2)","v":"2x8x10 kereste"},{"$f":"INDEX(TeklifÖğeleri[#Data],MATCH(4,TeklifÖğeleri[Derecelendirilmiş Maliyetler],0),4)","v":33.75}]
[null,{"$f":"INDEX(TeklifÖğeleri[#Data],MATCH(5,TeklifÖğeleri[Derecelendirilmiş Maliyetler],0),2)","v":"Eldiven çifti, deri"},{"$f":"INDEX(TeklifÖğeleri[#Data],MATCH(5,TeklifÖğeleri[Derecelendirilmiş Maliyetler],0),4)","v":15.5}]

{"sheet":"Maliyet Dökümü","index":2,"n_rows":14,"n_cols":6,"rows_kept":14,"merged":[[0,1,0,4],[1,1,1,4]]}
[null,"Maliyet Dökümü",{"$nulls":3}," "]
[null,"Malzeme ve Maliyet Listesi"]
[null,"Mkt.","Açıklama","Maliyet","Toplam","Derecelendirilmiş Maliyetler"]
[null,5,"2x8x10 kereste",{"v":6.75,"d":"₺6.75"},{"$f":"IFERROR(TeklifÖğeleri[[#This Row],[Maliyet]]*TeklifÖğeleri[[#This Row],[Mkt.]], \"\")","v":{"v":33.75,"d":"₺33.75"}},{"$f":"_xlfn.RANK.EQ(TeklifÖğeleri[[#This Row],[Toplam]],TeklifÖğeleri[Toplam])","v":4}]
[null,20,"2x4x10 kereste",{"v":4.97,"d":"₺4.97"},{"$f":"IFERROR(TeklifÖğeleri[[#This Row],[Maliyet]]*TeklifÖğeleri[[#This Row],[Mkt.]], \"\")","v":{"v":99.39999999999999,"d":"₺99.40"}},{"$f":"_xlfn.RANK.EQ(TeklifÖğeleri[[#This Row],[Toplam]],TeklifÖğeleri[Toplam])","v":2}]
[null,30,"Kiriş köşebendi",{"v":2.49,"d":"₺2.49"},{"$f":"IFERROR(TeklifÖğeleri[[#This Row],[Maliyet]]*TeklifÖğeleri[[#This Row],[Mkt.]], \"\")","v":{"v":74.7,"d":"₺74.70"}},{"$f":"_xlfn.RANK.EQ(TeklifÖğeleri[[#This Row],[Toplam]],TeklifÖğeleri[Toplam])","v":3}]
[null,2,"Vida kutusu, 5 cm",{"v":6.67,"d":"₺6.67"},{"$f":"IFERROR(TeklifÖğeleri[[#This Row],[Maliyet]]*TeklifÖğeleri[[#This Row],[Mkt.]], \"\")","v":{"v":13.34,"d":"₺13.34"}},{"$f":"_xlfn.RANK.EQ(TeklifÖğeleri[[#This Row],[Toplam]],TeklifÖğeleri[Toplam])","v":6}]
[null,2,"Çivi kutusu, 10 kuruş",{"v":3.25,"d":"₺3.25"},{"$f":"IFERROR(TeklifÖğeleri[[#This Row],[Maliyet]]*TeklifÖğeleri[[#This Row],[Mkt.]], \"\")","v":{"v":6.5,"d":"₺6.50"}},{"$f":"_xlfn.RANK.EQ(TeklifÖğeleri[[#This Row],[Toplam]],TeklifÖğeleri[Toplam])","v":7}]
[null,2,"Eldiven çifti, deri",{"v":7.75,"d":"₺7.75"},{"$f":"IFERROR(TeklifÖğeleri[[#This Row],[Maliyet]]*TeklifÖğeleri[[#This Row],[Mkt.]], \"\")","v":{"v":15.5,"d":"₺15.50"}},{"$f":"_xlfn.RANK.EQ(TeklifÖğeleri[[#This Row],[Toplam]],TeklifÖğeleri[Toplam])","v":5}]
[null,2,"İşçi ücretleri",{"v":100,"d":"₺100.00"},{"$f":"IFERROR(TeklifÖğeleri[[#This Row],[Maliyet]]*TeklifÖğeleri[[#This Row],[Mkt.]], \"\")","v":{"v":200,"d":"₺200.00"}},{"$f":"_xlfn.RANK.EQ(TeklifÖğeleri[[#This Row],[Toplam]],TeklifÖğeleri[Toplam])","v":1}]
[4,null,null,"Ara toplam",{"$f":"SUBTOTAL(109,TeklifÖğeleri[Toplam])","v":{"v":443.18999999999994,"d":"₺443.19"}}]
[5,null,null,"Vergi oranı",{"v":0.075,"d":"7.50%"}]
[{"$nulls":3},"Vergi",{"$f":"IFERROR(VergiOranı*TeklifÖğeleri[[#Totals],[Toplam]], \"\")","v":{"v":33.23924999999999,"d":"₺33.24"}}]
[{"$nulls":3},"Genel toplam",{"$f":"IFERROR(Vergi+TeklifÖğeleri[[#Totals],[Toplam]], \"\")","v":{"v":476.4292499999999,"d":"₺476.43"}}]

{"sheet":"Teklif Maliyeti Özeti","index":3,"n_rows":3,"n_cols":4,"rows_kept":3}
[null,"Teklif Maliyeti Özeti"]
[null,"Malzeme ve Maliyetlerin Dökümü",null,"Notlar"]
[null,"Malzeme başına en yüksek 5 maliyeti gösteren pasta grafiği. Veriler, Maliyet Dökümü çalışma sayfasındaki Teklif Öğeleri tablosunu temel alır",null,"Bu hücreye notları girin."]